fUSD/lending_fUSD_20250108
["ID","MTS","AMOUNT","RATE_DAILY","PERIOD"]
[348197372,1736380255292,-500.0,0.0001164,2]
[348197373,1736380255302,-1016.23,0.0001164,2]
[348197374,1736380255312,-918.8,0.0001164,2]
[348197375,1736380255321,-500.0,0.0001164,2]
[348197376,1736380255331,-1408.43,0.0001164,2]
[348197377,1736380255341,-2059.75,0.0001164,2]
[348197378,1736380255351,-1166.29,0.0001164,2]
[348197379,1736380255361,-500.0,0.0001164,2]
[348197380,1736380255371,-812.72,0.0001164,2]
[348197381,1736380255380,-500.0,0.0001164,2]
[348197382,1736380255390,-2611.99,0.0001164,2]
[348197383,1736380255400,-500.0,0.0001164,2]
[348197384,1736380255410,-500.0,0.0001164,2]
[348197385,1736380255419,-629.55,0.0001164,2]
[348197386,1736380255429,-500.0,0.0001164,2]
[348197387,1736380255438,-500.38,0.0001164,2]
[348197388,1736380255447,-500.0,0.0001164,2]
[348197389,1736380255457,-500.0,0.0001164,2]
[348197390,1736380255466,-604.03,0.0001164,2]
[348197391,1736380255476,-1296.24,0.0001164,2]
[348197392,1736380255485,-719.45,0.0001164,2]
[348197393,1736380255495,-500.0,0.0001164,2]
[348197394,1736380255504,-767.85,0.0001164,2]
[348197395,1736380255514,-500.0,0.0001164,2]
[348197396,1736380255524,-708.24,0.0001164,2]
[348197397,1736380255534,-704.59,0.0001164,2]
[348197398,1736380255544,-500.0,0.0001164,2]
[348197399,1736380255554,-1341.53,0.0001164,2]
[348197400,1736380255563,-500.0,0.0001164,2]
[348197401,1736380255573,-500.0,0.0001164,2]
[348197402,1736380255583,-500.0,0.0001164,2]
[348197403,1736380255592,-595.73,0.0001164,2]
[348197404,1736380255601,-535.92,0.0001164,2]
[348197405,1736380255611,-500.0,0.0001164,2]
[348197406,1736380255621,-1054.85,0.0001164,2]
[348197407,1736380255631,-500.0,0.0001164,2]
[348197408,1736380255640,-312.27,0.0001164,2]
[348197409,1736380255649,-1282.39,0.0001164,2]
[348197410,1736380255659,-500.0,0.0001164,2]
[348197411,1736380255668,-870.92,0.0001164,2]
[348197412,1736380255678,-1576.75,0.0001164,2]
[348197413,1736380255687,-500.0,0.0001164,2]
[348197414,1736380255697,-500.0,0.0001164,2]
[348197415,1736380255706,-2106.6,0.0001164,2]
[348197416,1736380255716,-1176.75,0.0001164,2]
[348197417,1736380255726,-4249.06,0.0001164,2]
[348197418,1736380255735,-688.04,0.0001164,2]
[348197419,1736380255745,-589.77,0.0001164,2]
[348197420,1736380255755,-1348.0,0.0001164,2]
[348197421,1736380255764,-598.96,0.0001164,2]
[348197422,1736380255773,-500.0,0.0001164,2]
[348197423,1736380255783,-545.09,0.0001164,2]
[348197424,1736380255793,-1270.96,0.0001164,2]
[348197425,1736380255804,-2854.22,0.0001164,2]
[348197426,1736380255814,-582.02,0.0001164,2]
[348197427,1736380255825,-500.0,0.0001164,2]
[348197428,1736380255835,-2630.37,0.0001164,2]
[348197429,1736380255844,-704.17,0.0001164,2]
[348197430,1736380255855,-566.64,0.0001164,2]
[348197431,1736380255864,-2074.7,0.0001164,2]
[348197432,1736380255874,-1364.88,0.0001164,2]
[348197433,1736380255886,-1094.17,0.00011641,2]
[348197434,1736380255895,-935.74,0.00011641,2]
[348197435,1736380255905,-1025.17,0.00011641,2]
[348197436,1736380255915,-500.0,0.00011641,2]
[348197437,1736380255926,-1000.0,0.00011641,2]
[348197438,1736380255935,-500.0,0.00011641,2]
[348197439,1736380255946,-500.0,0.00011641,2]
[348197440,1736380255957,-2127.12,0.00011641,2]
[348197441,1736380255968,-1484.99,0.00011642,2]
[348197442,1736380255978,-500.0,0.00011642,2]
[348197443,1736380255987,-1377.57,0.00011642,2]
[348197444,1736380255997,-3553.99,0.00011642,2]
[348197445,1736380256007,-664.96,0.00011642,2]
[348197446,1736380256017,-500.0,0.00011642,2]
[348197447,1736380256027,-580.46,0.00011642,2]
[348197448,1736380256036,-500.0,0.00011642,2]
[348197449,1736380256045,-2661.92,0.00011642,2]
[348197450,1736380256055,-1618.91,0.00011642,2]
[348197451,1736380256064,-2888.88,0.00011642,2]
[348197452,1736380256073,-2010.73,0.00011642,2]
[348197453,1736380256083,-764.61,0.00011642,2]
[348197454,1736380256093,-2319.16,0.00011642,2]
[348197455,1736380256102,-500.0,0.00011642,2]
[348197456,1736380256112,-500.0,0.00011642,2]
[348197457,1736380256122,-1201.15,0.00011642,2]
[348197458,1736380256132,-1597.86,0.00011642,2]
[348197459,1736380256141,-739.47,0.00011642,2]
[348197460,1736380256151,-512.06,0.00011642,2]
[348197461,1736380256161,-2574.8,0.00011642,2]
[348197462,1736380256171,-949.49,0.00011642,2]
[348197463,1736380256181,-756.87,0.00011642,2]
[348197464,1736380256191,-500.0,0.00011642,2]
[348197465,1736380256201,-500.0,0.00011642,2]
[348197466,1736380256211,-1632.21,0.00011642,2]
[348197467,1736380256221,-570.29,0.00011642,2]
[348197468,1736380256231,-906.77,0.00011642,2]
[348197469,1736380256241,-190.74599901,0.00011642,2]
[348197470,1736380256251,-1456.8,0.00011642,2]
[348197471,1736380256261,-678.71,0.00011642,2]
[348197472,1736380256271,-500.0,0.00011643,2]
[348197473,1736380256282,-631.09934867,0.00011643,2]
[348197474,1736380256291,-500.0,0.00011643,2]
[348197475,1736380256301,-593.11,0.00011643,2]
[348197476,1736380256311,-500.0,0.00011643,2]
[348197477,1736380256321,-500.0,0.00011643,2]
[348197478,1736380256330,-500.0,0.00011643,2]
[348197479,1736380256341,-500.0,0.00011643,2]
[348197480,1736380256351,-639.76,0.00011643,2]
[348197481,1736380256360,-500.0,0.00011643,2]
[348197482,1736380256370,-500.0,0.00011643,2]
[348197483,1736380256380,-500.0,0.00011643,2]
[348197484,1736380256389,-500.0,0.00011643,2]
[348197485,1736380256398,-382.53123827,0.00011643,2]
[348197486,1736380256408,-500.0,0.00011643,2]
[348197487,1736380256418,-603.59,0.00011643,2]
[348197488,1736380256428,-758.15,0.00011643,2]
[348197489,1736380256438,-994.57,0.00011643,2]
[348197490,1736380256448,-381.71680311,0.00011643,2]
[348197491,1736380256457,-500.0,0.00011643,2]
[348197492,1736380256466,-638.47,0.00011643,2]
[348197493,1736380256479,-500.0,0.00011643,2]
[348197494,1736380256494,-7.8306602,0.00011643,2]
[348197495,1736380256944,-1853.3093398,0.00011643,2]
[348197496,1736380256960,-500.0,0.00011643,2]
[348197497,1736380256972,-478.29642577,0.00011643,2]
[348197498,1736380256983,-500.0,0.00011643,2]
[348197499,1736380256995,-691.4,0.00011643,2]
[348197500,1736380257007,-513.94,0.00011643,2]
[348197501,1736380257018,-558.9,0.00011643,2]
[348197502,1736380257030,-500.0,0.00011643,2]
[348197503,1736380257042,-694.35,0.00011643,2]
[348197504,1736380257055,-695.7,0.00011643,2]
[348197505,1736380257066,-500.0,0.00011643,2]
[348197506,1736380257078,-500.0,0.00011643,2]
[348197507,1736380257090,-696.468158,0.00011643,2]
[348197508,1736380257101,-209.86345333,0.00011643,2]
[348197509,1736380257113,-663.628485,0.00011643,2]
[348197510,1736380257125,-500.0,0.00011643,2]
[348197511,1736380257137,-612.96,0.00011643,2]
[348197512,1736380257148,-1368.63789817,0.00011643,2]
[348197513,1736380257163,-665.61210183,0.00011643,2]
[348197514,1736380257175,-500.0,0.00011643,2]
[348197515,1736380257187,-500.0,0.00011643,2]
[348197516,1736380257198,-500.0,0.00011643,2]
[348197517,1736380257210,-591.77,0.00011643,2]
[348197518,1736380257222,-622.36,0.00011643,2]
[348197519,1736380257233,-500.0,0.00011643,2]
[348197520,1736380257245,-492.79044242,0.00011643,2]
[348197521,1736380257259,-191.08955758,0.00011643,2]
[348197522,1736380257272,-500.0,0.00011643,2]
[348197523,1736380257284,-381.81044242,0.00011643,2]
[348197524,1736380257309,-118.18955758,0.00011643,2]
[348197525,1736380257320,-1240.31385869,0.00011643,2]
[348197526,1736380257334,-1930.45614131,0.00011643,2]
[348197527,1736380257346,-566.2,0.00011643,2]
[348197528,1736380257357,-2454.34,0.00011643,2]
[348197529,1736380257369,-500.0,0.00011643,2]
[348197530,1736380257382,-2401.55,0.00011643,2]
[348197531,1736380257395,-500.0,0.00011643,2]
[348197532,1736380257407,-500.0,0.00011643,2]
[348197533,1736380257419,-500.0,0.00011643,2]
[348197534,1736380257432,-2856.78,0.00011643,2]
[348197535,1736380257444,-607.31,0.00011643,2]
[348197536,1736380257456,-747.33,0.00011643,2]
[348197537,1736380257468,-500.0,0.00011643,2]
[348197538,1736380257477,-363.78,0.00011643,2]
[348197539,1736380257487,-500.0,0.00011643,2]
[348197540,1736380257497,-500.0,0.00011643,2]
[348197541,1736380257506,-972.52,0.00011643,2]
[348197542,1736380257516,-500.0,0.00011643,2]
[348197543,1736380257526,-1217.39,0.00011643,2]
[348197544,1736380257536,-562.79,0.00011643,2]
[348197545,1736380257546,-500.0,0.00011643,2]
[348197546,1736380257556,-500.0,0.00011643,2]
[348197547,1736380257566,-501.12,0.00011643,2]
[348197548,1736380257576,-500.0,0.00011643,2]
[348197549,1736380257585,-1506.73,0.00011643,2]
[348197550,1736380257595,-2049.39,0.00011643,2]
[348197551,1736380257605,-500.0,0.00011643,2]
[348197552,1736380257615,-500.0,0.00011643,2]
[348197553,1736380257624,-500.0,0.00011643,2]
[348197554,1736380257634,-500.0,0.00011643,2]
[348197555,1736380257644,-1436.79,0.00011643,2]
[348197556,1736380257653,-1310.15,0.00011643,2]
[348197557,1736380257663,-662.34,0.00011643,2]
[348197558,1736380257673,-500.0,0.00011643,2]
[348197559,1736380257682,-727.13,0.00011643,2]
[348197560,1736380257692,-2766.9,0.00011643,2]
[348197561,1736380257702,-500.0,0.00011643,2]
[348197562,1736380257711,-500.0,0.00011643,2]
[348197563,1736380257720,-966.28,0.00011643,2]
[348197564,1736380257730,-500.0,0.00011643,2]
[348197565,1736380257740,-1789.04,0.00011643,2]
[348197566,1736380257750,-3353.62,0.00011643,2]
[348197567,1736380257760,-202.13626542,0.00011746,2]
[348197568,1736380257771,-1020.0,0.0001177,2]
[348197569,1736380257781,-1000.0,0.0001178,2]
[348197570,1736380257792,-1000.0,0.0001178,2]
[348197571,1736380257803,-1000.0,0.0001178,2]
[348197572,1736380257813,-1000.0,0.0001178,2]
[348197573,1736380257823,-1000.0,0.0001178,2]
[348197574,1736380257832,-1000.0,0.0001178,2]
[348197575,1736380257842,-1000.0,0.0001178,2]
[348197576,1736380257851,-1000.0,0.0001178,2]
[348197577,1736380257861,-1000.0,0.0001178,2]
[348197578,1736380257871,-1000.0,0.0001178,2]
[348197579,1736380257882,-500.0,0.0001178,2]
[348197580,1736380257892,-500.0,0.0001178,2]
[348197581,1736380257902,-500.0,0.0001178,2]
[348197582,1736380257911,-500.0,0.0001178,2]
[348197583,1736380258227,-500.0,0.0001178,2]
[348197584,1736380258244,-500.0,0.0001178,2]
[348197585,1736380258260,-500.0,0.0001178,2]
[348197586,1736380258270,-500.0,0.0001178,2]
[348197587,1736380258279,-200.0,0.000118,2]
[348197588,1736380258289,-423.85,0.000118,2]
[348197589,1736380258298,-423.85,0.000118,2]
[348197590,1736380258307,-423.85,0.000118,2]
[348197591,1736380258316,-423.85,0.000118,2]
[348197592,1736380258324,-423.85,0.000118,2]
[348197593,1736380258333,-423.85,0.000118,2]
[348197594,1736380258343,-423.85,0.000118,2]
[348197595,1736380258352,-423.85,0.000118,2]
[348197596,1736380258361,-423.85,0.000118,2]
[348197597,1736380258371,-423.85,0.000118,2]
[348197598,1736380258380,-423.85,0.000118,2]
[348197599,1736380258389,-423.85,0.000118,2]
[348197600,1736380258399,-423.85,0.000118,2]
[348197601,1736380258408,-423.85,0.000118,2]
[348197602,1736380258417,-423.85,0.000118,2]
[348197603,1736380258427,-423.85,0.000118,2]
[348197604,1736380258436,-423.85,0.000118,2]
[348197605,1736380258444,-423.85,0.000118,2]
[348197606,1736380258453,-423.85,0.000118,2]
[348197607,1736380258463,-423.85,0.000118,2]
[348197608,1736380258472,-423.85,0.000118,2]
[348197609,1736380258482,-423.85,0.000118,2]
[348197610,1736380258491,-423.85,0.000118,2]
[348197611,1736380258500,-423.85,0.000118,2]
[348197612,1736380258509,-423.85,0.000118,2]
[348197613,1736380258518,-423.85,0.000118,2]
[348197614,1736380258528,-423.85,0.000118,2]
[348197615,1736380258539,-423.85,0.000118,2]
[348197616,1736380258548,-423.85,0.000118,2]
[348197617,1736380258558,-423.85,0.000118,2]
[348197618,1736380258567,-423.85,0.000118,2]
[348197619,1736380258578,-423.85,0.000118,2]
[348197620,1736380258587,-423.85,0.000118,2]
[348197621,1736380258596,-423.85,0.000118,2]
[348197622,1736380258606,-423.85,0.000118,2]
[348197623,1736380258615,-423.85,0.000118,2]
[348197624,1736380258624,-423.85,0.000118,2]
[348197625,1736380258634,-423.85,0.000118,2]
[348197626,1736380258644,-423.85,0.000118,2]
[348197627,1736380258653,-423.85,0.000118,2]
[348197628,1736380258662,-423.85,0.000118,2]
[348197629,1736380258672,-423.85,0.000118,2]
[348197630,1736380258681,-423.85,0.000118,2]
[348197631,1736380258690,-423.85,0.000118,2]
[348197632,1736380258700,-423.85,0.000118,2]
[348197633,1736380258709,-423.85,0.000118,2]
[348197634,1736380258718,-423.85,0.000118,2]
[348197635,1736380258727,-423.85,0.000118,2]
[348197636,1736380258737,-423.85,0.000118,2]
[348197637,1736380258746,-423.85,0.000118,2]
[348197638,1736380258756,-423.85,0.000118,2]
[348197639,1736380258765,-423.85,0.000118,2]
[348197640,1736380258775,-423.85,0.000118,2]
[348197641,1736380258786,-423.85,0.000118,2]
[348197642,1736380258793,-423.85,0.000118,2]
[348197643,1736380258802,-423.85,0.000118,2]
[348197644,1736380258811,-423.85,0.000118,2]
[348197645,1736380258822,-423.85,0.000118,2]
[348197646,1736380258831,-423.85,0.000118,2]
[348197647,1736380258840,-423.85,0.000118,2]
[348197648,1736380258849,-423.85,0.000118,2]
[348197649,1736380258859,-423.85,0.000118,2]
[348197650,1736380258868,-423.85,0.000118,2]
[348197651,1736380258877,-423.85,0.000118,2]
[348197652,1736380258889,-423.85,0.000118,2]
[348197653,1736380258898,-423.85,0.000118,2]
[348197654,1736380258907,-423.85,0.000118,2]
[348197655,1736380258916,-423.85,0.000118,2]
[348197656,1736380258927,-423.85,0.000118,2]
[348197657,1736380258935,-423.85,0.000118,2]
[348197658,1736380258945,-423.85,0.000118,2]
[348197659,1736380258958,-423.85,0.000118,2]
[348197660,1736380258968,-423.85,0.000118,2]
[348197661,1736380258978,-423.85,0.000118,2]
[348197662,1736380258988,-423.85,0.000118,2]
[348197663,1736380258998,-423.85,0.000118,2]
[348197664,1736380259007,-423.85,0.000118,2]
[348197665,1736380259017,-423.85,0.000118,2]
[348197666,1736380259029,-423.85,0.000118,2]
[348197667,1736380259041,-423.85,0.000118,2]
[348197668,1736380259051,-423.85,0.000118,2]
[348197669,1736380259060,-423.85,0.000118,2]
[348197670,1736380259070,-423.85,0.000118,2]
[348197671,1736380259081,-423.85,0.000118,2]
[348197672,1736380259091,-423.85,0.000118,2]
[348197673,1736380259101,-423.85,0.000118,2]
[348197674,1736380259110,-423.85,0.000118,2]
[348197675,1736380259120,-423.85,0.000118,2]
[348197676,1736380259130,-423.85,0.000118,2]
[348197677,1736380259140,-423.85,0.000118,2]
[348197678,1736380259149,-423.85,0.000118,2]
[348197679,1736380259159,-423.85,0.000118,2]
[348197680,1736380259169,-423.85,0.000118,2]
[348197681,1736380259179,-423.85,0.000118,2]
[348197682,1736380259189,-423.85,0.000118,2]
[348197683,1736380259199,-423.85,0.000118,2]
[348197684,1736380259208,-423.85,0.000118,2]
[348197685,1736380259218,-423.85,0.000118,2]
[348197686,1736380259228,-423.85,0.000118,2]
[348197687,1736380259237,-150.227651,0.00011812,2]
[348197688,1736380259247,-202.13626542,0.00011862,2]
[348197689,1736380259257,-168498.01335771,0.0001188,2]
[348197690,1736380259266,-500.0,0.00011914,2]
[348197691,1736380259276,-1016.23,0.00011914,2]
[348197692,1736380259286,-918.8,0.00011914,2]
[348197693,1736380259296,-499.33281469,0.00011914,2]
[348197694,1736380259305,-1408.43,0.00011914,2]
[348197695,1736380259315,-2059.75,0.00011914,2]
[348197696,1736380259324,-1166.29,0.00011914,2]
[348197697,1736380259334,-649.72,0.00011914,2]
[348197698,1736380259343,-812.72,0.00011914,2]
[348197699,1736380259352,-500.0,0.00011914,2]
[348197700,1736380259361,-500.0,0.00011914,2]
[348197701,1736380259370,-500.0,0.00011914,2]
[348197702,1736380259379,-629.55,0.00011914,2]
[348197703,1736380259389,-201.71683218,0.00011914,2]
[348197704,1736380259399,-201.11306961,0.00011914,2]
[348197705,1736380259408,-500.0,0.00011914,2]
[348197706,1736380259418,-604.03,0.00011914,2]
[348197707,1736380259427,-719.45,0.00011914,2]
[348197708,1736380259436,-1296.24,0.00011914,2]
[348197709,1736380259446,-500.0,0.00011914,2]
[348197710,1736380259455,-767.85,0.00011914,2]
[348197711,1736380259464,-500.0,0.00011914,2]
[348197712,1736380259474,-708.24,0.00011914,2]
[348197713,1736380259483,-704.59,0.00011914,2]
[348197714,1736380259492,-289.82800921,0.00011914,2]
[348197715,1736380259502,-1341.53,0.00011914,2]
[348197716,1736380259511,-500.0,0.00011914,2]
[348197717,1736380259521,-151.06,0.00011914,2]
[348197718,1736380259532,-595.73,0.00011914,2]
[348197719,1736380259542,-535.92,0.00011914,2]
[348197720,1736380259551,-174.54,0.00011914,2]
[348197721,1736380259560,-1054.85,0.00011914,2]
[348197722,1736380259570,-500.0,0.00011914,2]
[348197723,1736380259579,-1282.39,0.00011914,2]
[348197724,1736380259589,-870.92,0.00011914,2]
[348197725,1736380259598,-1576.75,0.00011914,2]
[348197726,1736380259607,-500.0,0.00011914,2]
[348197727,1736380259617,-500.0,0.00011914,2]
[348197728,1736380259626,-2106.6,0.00011914,2]
[348197729,1736380259636,-1176.75,0.00011914,2]
[348197730,1736380259647,-4249.06,0.00011914,2]
[348197731,1736380259658,-688.04,0.00011914,2]
[348197732,1736380259668,-589.77,0.00011914,2]
[348197733,1736380259678,-1348.0,0.00011914,2]
[348197734,1736380259687,-598.96,0.00011914,2]
[348197735,1736380259696,-500.0,0.00011914,2]
[348197736,1736380259706,-545.09,0.00011914,2]
[348197737,1736380259715,-1270.96,0.00011914,2]
[348197738,1736380259724,-2854.22,0.00011914,2]
[348197739,1736380259734,-582.02,0.00011914,2]
[348197740,1736380259743,-500.0,0.00011914,2]
[348197741,1736380259753,-2630.37,0.00011914,2]
[348197742,1736380259763,-704.17,0.00011914,2]
[348197743,1736380259772,-566.64,0.00011914,2]
[348197744,1736380259780,-2074.7,0.00011914,2]
[348197745,1736380259789,-1364.88,0.00011914,2]
[348197746,1736380259799,-1094.17,0.00011915,2]
[348197747,1736380259808,-935.74,0.00011915,2]
[348197748,1736380259817,-1025.17,0.00011915,2]
[348197749,1736380259826,-500.0,0.00011915,2]
[348197750,1736380259836,-889.48608853,0.00011915,2]
[348197751,1736380259845,-500.0,0.00011915,2]
[348197752,1736380259854,-500.0,0.00011915,2]
[348197753,1736380259864,-2127.12,0.00011915,2]
[348197754,1736380259873,-1484.99,0.00011916,2]
[348197755,1736380259887,-500.0,0.00011916,2]
[348197756,1736380259896,-1377.57,0.00011916,2]
[348197757,1736380259906,-3553.99,0.00011916,2]
[348197758,1736380259915,-664.96,0.00011916,2]
[348197759,1736380259925,-500.0,0.00011916,2]
[348197760,1736380259934,-580.46,0.00011916,2]
[348197761,1736380259944,-2661.92,0.00011916,2]
[348197762,1736380259953,-1618.91,0.00011916,2]
[348197763,1736380259963,-2888.88,0.00011916,2]
[348197764,1736380259972,-2010.73,0.00011916,2]
[348197765,1736380259981,-764.61,0.00011916,2]
[348197766,1736380259990,-2319.16,0.00011916,2]
[348197767,1736380259999,-500.0,0.00011916,2]
[348197768,1736380260010,-500.0,0.00011916,2]
[348197769,1736380260020,-1201.15,0.00011916,2]
[348197770,1736380260030,-1597.86,0.00011916,2]
[348197771,1736380260040,-739.47,0.00011916,2]
[348197772,1736380260050,-512.06,0.00011916,2]
[348197773,1736380260060,-2574.8,0.00011916,2]
[348197774,1736380260070,-949.49,0.00011916,2]
[348197775,1736380260080,-500.0,0.00011916,2]
[348197776,1736380260090,-756.87,0.00011916,2]
[348197777,1736380260100,-500.0,0.00011916,2]
[348197778,1736380260110,-500.0,0.00011916,2]
[348197779,1736380260121,-1632.21,0.00011916,2]
[348197780,1736380260131,-570.29,0.00011916,2]
[348197781,1736380260140,-906.77,0.00011916,2]
[348197782,1736380260150,-1456.8,0.00011916,2]
[348197783,1736380260160,-678.71,0.00011916,2]
[348197784,1736380260170,-500.0,0.00011917,2]
[348197785,1736380260179,-500.0,0.00011917,2]
[348197786,1736380260189,-500.0,0.00011917,2]
[348197787,1736380260198,-500.0,0.00011917,2]
[348197788,1736380260208,-334.6,0.00011917,2]
[348197789,1736380260218,-225.19853751,0.00011917,2]
[348197790,1736380260228,-639.76,0.00011917,2]
[348197791,1736380260238,-500.0,0.00011917,2]
[348197792,1736380260247,-500.0,0.00011917,2]
[348197793,1736380260257,-500.0,0.00011917,2]
[348197794,1736380260267,-510.86,0.00011917,2]
[348197795,1736380260277,-500.0,0.00011917,2]
[348197796,1736380260288,-603.59,0.00011917,2]
[348197797,1736380260298,-758.15,0.00011917,2]
[348197798,1736380260307,-994.57,0.00011917,2]
[348197799,1736380260316,-500.0,0.00011917,2]
[348197800,1736380260325,-638.47,0.00011917,2]
[348197801,1736380260335,-500.0,0.00011917,2]
[348197802,1736380260344,-1861.14,0.00011917,2]
[348197803,1736380260353,-500.0,0.00011917,2]
[348197804,1736380260363,-500.0,0.00011917,2]
[348197805,1736380260372,-513.94,0.00011917,2]
[348197806,1736380260382,-691.4,0.00011917,2]
[348197807,1736380260392,-558.9,0.00011917,2]
[348197808,1736380260401,-694.35,0.00011917,2]
[348197809,1736380260410,-695.7,0.00011917,2]
[348197810,1736380260420,-500.0,0.00011917,2]
[348197811,1736380260430,-500.0,0.00011917,2]
[348197812,1736380260439,-696.468158,0.00011917,2]
[348197813,1736380260450,-663.628485,0.00011917,2]
[348197814,1736380260460,-500.0,0.00011917,2]
[348197815,1736380260470,-612.96,0.00011917,2]
[348197816,1736380260479,-2034.25,0.00011917,2]
[348197817,1736380260488,-500.0,0.00011917,2]
[348197818,1736380260497,-500.0,0.00011917,2]
[348197819,1736380260506,-500.0,0.00011917,2]
[348197820,1736380260516,-591.77,0.00011917,2]
[348197821,1736380260525,-622.36,0.00011917,2]
[348197822,1736380260535,-500.0,0.00011917,2]
[348197823,1736380260544,-683.88,0.00011917,2]
[348197824,1736380260554,-500.0,0.00011917,2]
[348197825,1736380260563,-500.0,0.00011917,2]
[348197826,1736380260573,-3170.77,0.00011917,2]
[348197827,1736380260582,-566.2,0.00011917,2]
[348197828,1736380260591,-2454.34,0.00011917,2]
[348197829,1736380260601,-500.0,0.00011917,2]
[348197830,1736380260610,-2401.55,0.00011917,2]
[348197831,1736380260619,-500.0,0.00011917,2]
[348197832,1736380260629,-500.0,0.00011917,2]
[348197833,1736380260638,-548.31830859,0.00011917,2]
[348197834,1736380260648,-2856.78,0.00011917,2]
[348197835,1736380260660,-607.31,0.00011917,2]
[348197836,1736380260670,-747.33,0.00011917,2]
[348197837,1736380260679,-500.0,0.00011917,2]
[348197838,1736380260689,-500.0,0.00011917,2]
[348197839,1736380260698,-500.0,0.00011917,2]
[348197840,1736380260707,-972.52,0.00011917,2]
[348197841,1736380260717,-500.0,0.00011917,2]
[348197842,1736380260726,-1217.39,0.00011917,2]
[348197843,1736380260735,-562.79,0.00011917,2]
[348197844,1736380260744,-500.0,0.00011917,2]
[348197845,1736380260753,-501.12,0.00011917,2]
[348197846,1736380260763,-500.0,0.00011917,2]
[348197847,1736380260772,-1506.73,0.00011917,2]
[348197848,1736380260781,-2049.39,0.00011917,2]
[348197849,1736380260792,-500.0,0.00011917,2]
[348197850,1736380260802,-394.94945206,0.00011917,2]
[348197851,1736380260812,-500.0,0.00011917,2]
[348197852,1736380260824,-336.50420754,0.00011917,2]
[348197853,1736380260835,-1436.79,0.00011917,2]
[348197854,1736380260844,-1310.15,0.00011917,2]
[348197855,1736380260854,-662.34,0.00011917,2]
[348197856,1736380260863,-500.0,0.00011917,2]
[348197857,1736380260872,-727.13,0.00011917,2]
[348197858,1736380260883,-2766.9,0.00011917,2]
[348197859,1736380260894,-500.0,0.00011917,2]
[348197860,1736380260903,-500.0,0.00011917,2]
[348197861,1736380260913,-966.28,0.00011917,2]
[348197862,1736380260923,-500.0,0.00011917,2]
[348197863,1736380260934,-1789.04,0.00011917,2]
[348197864,1736380260945,-202.13626542,0.00011977,2]
[348197865,1736380260956,-1000.0,0.00012,3]
[348197866,1736380260965,-1267.5684007,0.00012,2]
[348197867,1736380260975,-5203.0,0.00012,2]
[348197868,1736380260984,-200.0,0.00012055,2]
[348197869,1736380260994,-202.13626542,0.00012092,2]
[348197870,1736380261003,-1000.0,0.000121,2]
[348197871,1736380261012,-500.0,0.00012188,2]